bitfinex/quotes_BTCUSD_20240719
["timestamp","ask_amount","ask_price","bid_price","bid_amount"]
[1721353837301,0.1473,63909.0,63908.0,1.195321]
[1721353837506,0.1473,63909.0,63908.0,1.209321]
[1721353837707,0.1473,63909.0,63908.0,1.223321]
[1721353837910,0.1473,63909.0,63908.0,1.209321]
[1721353838488,0.1473,63909.0,63908.0,1.205321]
[1721353838685,0.1473,63909.0,63908.0,1.218321]
[1721353839744,0.1473,63909.0,63908.0,1.36270274]
[1721353839945,0.065,63909.0,63908.0,1.39570274]
[1721353840409,0.065,63909.0,63908.0,1.70865174]
[1721353840628,0.002,63909.0,63908.0,2.08275174]
[1721353840809,0.002,63909.0,63908.0,2.21269998]
[1721353841017,0.002,63909.0,63908.0,2.14799998]
[1721353841200,0.002,63909.0,63908.0,2.46094898]
[1721353841606,0.002,63909.0,63908.0,2.12499998]
[1721353841811,0.00283,63909.0,63908.0,2.12499998]
[1721353842006,0.00283,63909.0,63908.0,2.13899998]
[1721353842219,0.00283,63909.0,63908.0,2.44824898]
[1721353842385,0.00283,63909.0,63908.0,2.49824898]
[1721353842584,0.00283,63909.0,63908.0,2.50954898]
[1721353842990,0.00283,63909.0,63908.0,2.52354898]
[1721353843419,0.00283,63909.0,63908.0,2.50954898]
[1721353843771,0.00283,63909.0,63908.0,2.52354898]
[1721353844355,0.00283,63909.0,63908.0,2.53754898]
[1721353844554,0.00283,63909.0,63908.0,2.50954898]
[1721353844977,0.00283,63909.0,63908.0,2.52354898]
[1721353845404,0.00283,63909.0,63908.0,2.21059998]
[1721353845835,0.00283,63909.0,63908.0,1.82059998]
[1721353846326,0.00283,63909.0,63908.0,1.50765098]
[1721353846479,0.08463,63909.0,63908.0,1.37770274]
[1721353847104,0.00283,63909.0,63908.0,1.37770274]
[1721353847310,0.00283,63909.0,63908.0,1.36370274]
[1721353847711,0.00283,63909.0,63908.0,1.34970274]
[1721353848130,0.00283,63909.0,63908.0,1.36370274]
[1721353848724,0.00283,63909.0,63908.0,1.37770274]
[1721353848930,0.00283,63909.0,63908.0,1.06475374]
[1721353849133,0.07973,63909.0,63908.0,1.06475374]
[1721353849540,0.00283,63909.0,63908.0,2.05580472]
[1721353849944,0.00283,63909.0,63908.0,2.06980472]
[1721353850315,0.00283,63909.0,63908.0,2.06979356]
[1721353850539,0.00283,63909.0,63908.0,2.05579356]
[1721353850741,0.00283,63909.0,63908.0,2.04179356]
[1721353850853,0.00283,63909.0,63908.0,2.41474256]
[1721353851064,0.00283,63909.0,63908.0,2.42874256]
[1721353851261,0.00283,63909.0,63908.0,2.36474256]
[1721353851510,0.00283,63909.0,63908.0,2.35474256]
[1721353851711,0.00283,63909.0,63908.0,2.05579356]
[1721353852444,0.00283,63909.0,63908.0,2.35474256]
[1721353852800,0.00283,63909.0,63908.0,2.23021513]
[1721353853000,0.00283,63909.0,63908.0,2.50954256]
[1721353853200,0.00283,63909.0,63908.0,2.39360074]
[1721353853390,0.00283,63909.0,63908.0,2.52353619]
[1721353853787,0.00283,63909.0,63908.0,2.50953619]
[1721353854249,0.00283,63909.0,63908.0,2.52353619]
[1721353855045,0.00283,63909.0,63908.0,2.50953619]
[1721353855252,0.00283,63909.0,63908.0,2.52353619]
[1721353855649,0.00283,63909.0,63908.0,2.50953619]
[1721353855874,0.00283,63909.0,63908.0,2.52353619]
[1721353856387,0.00283,63909.0,63908.0,2.49553619]
[1721353856590,0.00283,63909.0,63908.0,2.57353619]
[1721353856815,0.00283,63909.0,63908.0,2.55953619]
[1721353857024,0.00833,63913.0,63911.0,0.115]
[1721353857025,8.9e-07,63912.0,63911.0,0.115]
[1721353857178,8.9e-07,63912.0,63911.0,0.75595898]
[1721353857379,0.00833,63913.0,63912.0,1.137925]
[1721353857380,8.9e-07,63913.0,63912.0,1.137925]
[1721353857556,8.9e-07,63913.0,63912.0,1.85817219]
[1721353857760,8.9e-07,63913.0,63912.0,2.17110219]
[1721353858162,8.9e-07,63913.0,63912.0,2.48403219]
[1721353858362,8.9e-07,63913.0,63912.0,2.74696219]
[1721353858561,8.9e-07,63913.0,63912.0,2.79696219]
[1721353858813,8.9e-07,63913.0,63912.0,2.63196219]
[1721353858981,8.9e-07,63913.0,63912.0,2.33303219]
[1721353859163,8.9e-07,63913.0,63912.0,2.64596219]
[1721353859347,8.9e-07,63913.0,63912.0,2.81096219]
[1721353859544,8.9e-07,63913.0,63912.0,2.68102674]
[1721353859743,8.9e-07,63913.0,63912.0,2.95487076]
[1721353859964,8.9e-07,63913.0,63912.0,2.82494875]
[1721353860257,0.00018884,63930.0,63922.0,1.720845]
[1721353860463,0.00018884,63930.0,63922.0,2.50034875]
[1721353861245,0.00018884,63930.0,63922.0,2.43464875]
[1721353861395,0.00018884,63930.0,63922.0,2.36834875]
[1721353861396,0.0847,63929.0,63922.0,2.36834875]
[1721353861602,0.0847,63929.0,63922.0,2.25242674]
[1721353862797,0.002,63929.0,63922.0,2.25242674]
[1721353863000,0.002,63929.0,63922.0,2.38234227]
[1721353863780,0.002,63929.0,63922.0,2.36834227]
[1721353863984,0.002,63929.0,63922.0,2.38234227]
[1721353864553,0.002,63929.0,63922.0,2.36834227]
[1721353864752,0.002,63929.0,63922.0,2.38234227]
[1721353866906,0.002,63929.0,63922.0,2.46926922]
[1721353867701,0.002,63929.0,63922.0,2.47760922]
[1721353868098,0.002,63929.0,63922.0,2.46360922]
[1721353868269,0.002,63929.0,63922.0,2.44960922]
[1721353868465,0.002,63929.0,63922.0,2.46360922]
[1721353868674,0.002,63929.0,63922.0,2.49960922]
[1721353868903,0.002,63929.0,63922.0,2.56560922]
[1721353869309,0.002,63929.0,63922.0,2.44969369]
[1721353869539,0.002,63929.0,63922.0,2.59360377]
[1721353869717,0.002,63929.0,63922.0,2.54360377]
[1721353870024,0.002,63929.0,63922.0,2.52960377]
[1721353870435,0.002,63929.0,63922.0,2.54360377]
[1721353870821,0.002,63929.0,63922.0,2.52960377]
[1721353871257,0.002,63929.0,63922.0,2.54360377]
[1721353871571,0.002,63929.0,63922.0,2.57960377]
[1721353871912,0.002,63929.0,63922.0,2.60140377]
[1721353872314,0.002,63929.0,63922.0,2.57340377]
[1721353872512,0.002,63929.0,63922.0,2.45749369]
[1721353872710,0.002,63929.0,63922.0,2.60140377]
[1721353873055,0.002,63929.0,63922.0,2.58740377]
[1721353873192,0.002,63929.0,63922.0,2.60140377]
[1721353873401,0.002,63929.0,63922.0,2.55140377]
[1721353873918,0.002,63929.0,63922.0,2.60140377]
[1721353875533,0.002,63929.0,63922.0,2.58740377]
[1721353875739,0.002,63929.0,63922.0,2.44349369]
[1721353875947,0.002,63929.0,63922.0,2.58740345]
[1721353876148,0.002,63929.0,63922.0,2.60140345]
[1721353876350,0.002,63929.0,63922.0,2.58740345]
[1721353876755,0.002,63929.0,63922.0,2.53740345]
[1721353876932,0.002,63929.0,63922.0,2.55140345]
[1721353877330,0.0622,63926.0,63922.0,2.48540345]
[1721353877533,0.0622,63926.0,63922.0,2.40800345]
[1721353877959,0.0622,63926.0,63922.0,1.83192245]
[1721353878435,0.0622,63926.0,63922.0,1.84592245]
[1721353878844,0.0622,63926.0,63922.0,1.71601269]
[1721353879048,0.0622,63926.0,63922.0,1.8319301]
[1721353879575,0.0622,63926.0,63922.0,1.8459301]
[1721353879983,0.0622,63926.0,63922.0,1.8179301]
[1721353880183,0.0622,63926.0,63922.0,1.8409301]
[1721353880383,0.0622,63926.0,63922.0,1.8549301]
[1721353880586,0.002,63929.0,63922.0,1.8549301]
[1721353880587,0.15404,63923.0,63922.0,1.4337091]
[1721353880820,0.15404,63923.0,63922.0,1.28079169]
[1721353881428,0.15404,63923.0,63922.0,1.29479169]
[1721353881608,0.15404,63923.0,63922.0,1.28079169]
[1721353881790,0.15404,63923.0,63922.0,1.26679169]
[1721353881991,0.15404,63923.0,63922.0,1.28526474]
[1721353882406,0.15404,63923.0,63922.0,1.37126474]
[1721353882810,0.15404,63923.0,63922.0,0.19224]
[1721353883011,0.15404,63923.0,63922.0,0.0358]
[1721353883277,0.16278049,63923.0,63922.0,0.0358]
[1721353883473,0.63209449,63923.0,63922.0,0.0358]
[1721353883698,0.63209449,63923.0,63913.0,0.000913]
[1721353883699,0.0692,63915.0,63913.0,0.000913]
[1721353883890,0.02230644,63914.0,63913.0,0.000913]
[1721353884045,0.07790644,63914.0,63911.0,0.156466]
[1721353884244,0.0136,63912.0,63911.0,0.156466]
[1721353884444,0.15647,63910.0,63904.0,0.156482]
[1721353884676,0.00868559,63909.0,63905.0,0.156481]
[1721353884931,0.0611,63908.0,63905.0,0.156481]
[1721353885079,0.0666,63907.0,63905.0,0.156481]
[1721353885503,0.312926,63913.0,63902.0,0.312977]
[1721353885504,0.06978559,63906.0,63902.0,0.312977]
[1721353885683,0.1212,63906.0,63905.0,0.156482]
[1721353885880,0.12988559,63906.0,63905.0,0.156482]
[1721353886079,0.12988559,63906.0,63905.0,0.469446]
[1721353886283,0.1212,63906.0,63905.0,0.469446]
[1721353887302,0.1212,63906.0,63905.0,0.78241]
[1721353887505,0.1212,63906.0,63905.0,0.78341]
[1721353887776,0.1212,63906.0,63905.0,0.78841]
[1721353887995,0.1212,63906.0,63905.0,1.25575574]
[1721353888193,0.0601,63906.0,63905.0,1.25075574]
[1721353888401,0.0601,63906.0,63905.0,1.56371974]
[1721353888600,0.0611,63906.0,63905.0,1.66971974]
[1721353889025,0.0611,63906.0,63905.0,1.35675574]
[1721353889775,0.0611,63906.0,63905.0,0.88941]
[1721353896599,0.001,63906.0,63905.0,0.88941]
[1721353897096,0.001,63906.0,63905.0,1.202374]
[1721353897333,0.001,63906.0,63905.0,1.35675574]
[1721353898879,0.001,63906.0,63905.0,1.81171974]
[1721353899145,0.001,63906.0,63905.0,1.84383314]
[1721353899446,0.001,63906.0,63905.0,1.38886914]
[1721353899799,0.0654,63915.0,63914.0,1.09522]
[1721353899999,0.0654,63915.0,63914.0,1.24960174]
[1721353902237,0.0611,63914.0,63913.0,0.156461]
[1721353902436,0.1253,63914.0,63913.0,0.156461]
[1721353902867,0.13395433,63914.0,63913.0,0.469386]
[1721353903067,0.1253,63914.0,63913.0,0.469386]
[1721353903641,0.13395433,63914.0,63913.0,0.473386]
[1721353904240,0.13395433,63914.0,63913.0,0.469386]
[1721353904642,0.1263,63914.0,63913.0,0.475386]
[1721353905663,0.13495951,63914.0,63913.0,0.475386]
[1721353906124,0.13395951,63914.0,63913.0,0.469386]
[1721353906332,0.13395951,63914.0,63913.0,0.787311]
[1721353906640,0.1253,63914.0,63913.0,0.785311]
[1721353907277,0.1253,63914.0,63913.0,0.782311]
[1721353907481,0.1263,63914.0,63913.0,0.782311]
[1721353908140,0.12813,63914.0,63913.0,0.788311]
[1721353908315,0.12713,63914.0,63913.0,0.782311]
[1721353908696,0.12713,63914.0,63913.0,0.783311]
[1721353909278,0.12613,63914.0,63913.0,0.782311]
[1721353909398,0.12713,63914.0,63913.0,0.475386]
[1721353909601,0.12713,63914.0,63913.0,0.472386]
[1721353910032,0.13578951,63914.0,63913.0,0.470386]
[1721353910444,0.13678951,63914.0,63913.0,0.470386]
[1721353910849,0.12813,63914.0,63913.0,0.470386]
[1721353911227,0.12813,63914.0,63913.0,0.783311]
[1721353912098,0.12713,63914.0,63913.0,0.782311]
[1721353912297,0.12813,63914.0,63913.0,0.788311]
[1721353912696,0.12813,63914.0,63913.0,0.782311]
[1721353913098,0.12713,63914.0,63913.0,0.782311]
[1721353913259,0.12713,63914.0,63913.0,0.783311]
[1721353913467,0.12713,63914.0,63913.0,0.786311]
[1721353913663,0.06503,63914.0,63913.0,0.785311]
[1721353913865,0.00083,63914.0,63913.0,1.098136]
[1721353914067,0.00083,63914.0,63913.0,1.094536]
[1721353914705,0.00083,63914.0,63913.0,0.781611]
[1721353914923,0.00083,63914.0,63913.0,0.781111]
[1721353915123,0.00083,63914.0,63913.0,0.780911]
[1721353915343,0.00183,63914.0,63913.0,0.786911]
[1721353915786,0.00183,63914.0,63913.0,0.780811]
[1721353915787,0.00083,63914.0,63913.0,0.780811]
[1721353915935,0.00083,63914.0,63913.0,0.780211]
[1721353916135,0.00183,63914.0,63913.0,0.783211]
[1721353916346,0.00183,63914.0,63913.0,0.780211]
[1721353916887,0.00083,63914.0,63913.0,0.780211]
[1721353917162,0.00083,63914.0,63913.0,0.783211]
[1721353917364,0.00183,63914.0,63913.0,0.789211]
[1721353917517,0.00183,63914.0,63913.0,0.786211]
[1721353917728,0.00183,63914.0,63913.0,0.787211]
[1721353918576,0.00083,63914.0,63913.0,0.781211]
[1721353918983,0.00083,63914.0,63913.0,0.784211]
[1721353919184,0.00083,63914.0,63913.0,0.780211]
[1721353919401,0.00083,63914.0,63913.0,0.783211]
[1721353919576,0.00183,63914.0,63913.0,0.789211]
[1721353919780,0.00183,63914.0,63913.0,0.470286]
[1721353919978,0.06293,63914.0,63913.0,0.467286]
[1721353920220,0.10756597,63914.0,63913.0,0.159361]
[1721353920428,1.46038199,63914.0,63913.0,0.002]
[1721353920570,1.44726162,63914.0,63913.0,0.002]
[1721353920776,1.44726162,63914.0,63905.0,0.000913]
[1721353920777,0.156474,63909.0,63905.0,0.000913]
[1721353921017,0.04463597,63908.0,63905.0,0.000913]
[1721353921153,0.156477,63907.0,63905.0,0.000913]
[1721353921614,0.23013465,63906.0,63905.0,0.000913]
[1721353922622,0.23013465,63906.0,63905.0,0.005913]
[1721353922850,0.07365565,63906.0,63905.0,0.000913]
[1721353923224,0.07465565,63906.0,63905.0,0.006913]
[1721353923436,0.07465565,63906.0,63905.0,0.009913]
[1721353924255,0.23113465,63906.0,63905.0,0.009913]
[1721353926191,0.07465565,63906.0,63905.0,0.009913]
[1721353926977,0.23113465,63906.0,63905.0,0.009913]
[1721353930677,0.07465565,63906.0,63905.0,0.009913]
[1721353931995,0.23113465,63906.0,63905.0,0.009913]
[1721353932571,1.03746422,63906.0,63905.0,0.009913]
[1721353932775,1.32629329,63906.0,63905.0,0.009913]
[1721353932980,2.10724295,63906.0,63905.0,0.009913]
[1721353933182,2.0752909,63906.0,63905.0,0.009913]
[1721353933384,2.0847773,63906.0,63905.0,0.006913]
[1721353933647,2.23912687,63906.0,63905.0,0.006913]
[1721353933827,2.24812687,63906.0,63905.0,0.007913]
[1721353934416,1.645528,63896.0,63895.0,0.000913]
[1721353934681,0.156526,63887.0,63884.0,0.002794]
[1721353934848,0.156534,63884.0,63879.0,0.156544]
[1721353935028,0.469625,63881.0,63875.0,0.156555]
[1721353935231,0.156543,63881.0,63876.0,0.156553]
[1721353935432,0.0094864,63880.0,63876.0,0.156553]
[1721353936033,0.0094864,63880.0,63877.0,0.15655]
[1721353936620,0.158541,63881.0,63876.0,0.156552]
[1721353936825,0.158541,63881.0,63879.0,0.001]
[1721353937024,0.156543,63880.0,63879.0,0.001]
[1721353937689,1.282717,63880.0,63879.0,0.001]
[1721353937891,1.458617,63880.0,63879.0,0.001]
[1721353938098,1.408617,63880.0,63879.0,0.001]
[1721353938527,0.156558,63874.0,63872.0,0.000913]
[1721353939900,0.163558,63874.0,63872.0,0.001913]
[1721353940311,0.162558,63874.0,63872.0,0.001913]
[1721353940923,0.01175126,63873.0,63872.0,0.001913]
[1721353942156,0.16831126,63873.0,63872.0,0.001913]
[1721353942356,0.16831126,63873.0,63872.0,0.000913]
[1721353942563,0.17331126,63873.0,63872.0,0.000913]
[1721353942779,0.16231126,63873.0,63872.0,0.000913]
[1721353942981,0.17602106,63873.0,63872.0,0.000913]
[1721353944925,0.48914206,63873.0,63872.0,0.000913]
[1721353945759,1.29248406,63873.0,63872.0,0.000913]
[1721353946787,1.9468658,63873.0,63872.0,0.000913]
[1721353947692,1.9418658,63873.0,63872.0,0.000913]
[1721353948044,1.9538658,63873.0,63872.0,0.001913]
[1721353948468,1.9378658,63873.0,63872.0,0.000913]
[1721353948738,1.9772628,63873.0,63872.0,0.000913]
[1721353948936,1.9772628,63873.0,63872.0,0.002913]
[1721353948937,2.4803838,63873.0,63872.0,0.002913]
[1721353949089,2.5693838,63873.0,63872.0,0.001913]
[1721353950061,2.5553838,63873.0,63872.0,0.000913]
[1721353950232,2.5693838,63873.0,63872.0,0.000913]
[1721353951431,2.5833838,63873.0,63872.0,0.001913]
[1721353952712,2.6094207,63873.0,63872.0,0.001913]
[1721353954495,2.5700237,63873.0,63872.0,0.001913]
[1721353955149,2.5439868,63873.0,63872.0,0.001913]
[1721353955725,2.5728425,63873.0,63872.0,0.001913]
[1721353956085,2.5439868,63873.0,63872.0,0.001913]
[1721353957119,2.57282194,63873.0,63872.0,0.001913]
[1721353957390,2.72717151,63873.0,63872.0,0.001913]
[1721353958249,2.57282194,63873.0,63872.0,0.001913]
[1721353961584,2.90398813,63873.0,63872.0,0.001913]
[1721353961719,2.92698813,63873.0,63872.0,0.001913]
[1721353962308,2.85562071,63873.0,63872.0,0.001913]
[1721353962501,2.81706713,63873.0,63872.0,0.001913]
[1721353962757,2.8498089,63873.0,63872.0,0.001913]
[1721353962968,2.8358089,63873.0,63872.0,0.001913]
[1721353963264,2.8498089,63873.0,63872.0,0.002913]
[1721353963611,2.8218089,63873.0,63872.0,0.000913]
[1721353963809,2.3358089,63873.0,63872.0,0.000913]
[1721353964034,2.3358089,63873.0,63872.0,0.001913]
[1721353964035,2.8498089,63873.0,63872.0,0.001913]
[1721353964260,2.8498089,63873.0,63872.0,0.000913]
[1721353964431,2.8358089,63873.0,63872.0,0.000913]
[1721353964648,2.8498089,63873.0,63872.0,0.000913]
[1721353965427,2.8358089,63873.0,63872.0,0.000913]
[1721353965868,2.8498089,63873.0,63872.0,0.000913]
[1721353966879,2.83106713,63873.0,63872.0,0.000913]
[1721353967502,2.81706713,63873.0,63872.0,0.000913]
[1721353967736,2.83106713,63873.0,63872.0,0.000913]
[1721353970924,2.81302194,63873.0,63872.0,0.000913]
[1721353971153,2.83217105,63873.0,63872.0,0.000913]
[1721353971297,2.87361354,63873.0,63872.0,0.000913]
[1721353972123,2.83217105,63873.0,63872.0,0.000913]
[1721353972730,2.83300105,63873.0,63872.0,0.000913]
[1721353973244,2.70590105,63873.0,63872.0,0.000913]
[1721353974339,1.36502388,63873.0,63872.0,0.000913]
[1721353974481,1.86502388,63873.0,63872.0,0.000913]
[1721353974681,1.91502388,63873.0,63872.0,0.000913]
[1721353974930,2.22814488,63873.0,63872.0,0.000913]
[1721353975401,1.67814488,63873.0,63872.0,0.000913]
[1721353975568,2.17814488,63873.0,63872.0,0.000913]
[1721353975974,2.25660324,63873.0,63872.0,0.000913]
[1721353976137,2.30660324,63873.0,63872.0,0.000913]
[1721353976497,2.25660324,63873.0,63872.0,0.000913]
[1721353976944,2.30660324,63873.0,63872.0,0.000913]
[1721353977366,2.2870893,63873.0,63872.0,0.000913]
[1721353977571,2.30672296,63873.0,63872.0,0.000913]
[1721353978163,2.28127176,63873.0,63872.0,0.000913]
[1721353979190,1.78127176,63873.0,63872.0,0.000913]
[1721353979394,2.28127176,63873.0,63872.0,0.000913]
[1721353979570,0.78284,63870.0,63869.0,0.095913]
[1721353979806,0.8313088,63870.0,63869.0,0.095913]
[1721353980010,0.06201183,63870.0,63869.0,0.095913]
[1721353980420,0.21857983,63870.0,63869.0,0.095913]
[1721353980598,0.21891664,63870.0,63869.0,0.095913]
[1721353980801,0.23291664,63870.0,63869.0,0.095913]
[1721353981006,0.24691664,63870.0,63869.0,0.095913]
[1721353981333,0.23291664,63870.0,63869.0,0.095913]
[1721353981694,0.26091664,63870.0,63869.0,0.095913]
[1721353983736,0.26044175,63870.0,63869.0,0.095913]
[1721353983934,0.10387375,63870.0,63869.0,0.252483]
[1721353984323,0.08437817,63870.0,63869.0,0.252483]
[1721353984726,0.05554303,63870.0,63869.0,0.878763]
[1721353984924,0.00083,63873.0,63872.0,0.469689]
[1721353985130,0.00083,63873.0,63872.0,0.922015]
[1721353985325,0.00083,63873.0,63872.0,1.235141]
[1721353985526,0.00083,63873.0,63872.0,1.38952274]
[1721353986105,0.00083,63873.0,63872.0,1.07639674]
[1721353987094,0.00083,63873.0,63872.0,1.07939674]
[1721353987494,0.00083,63873.0,63872.0,1.07739674]
[1721353987697,0.00083,63873.0,63872.0,1.07639674]
[1721353987897,0.00083,63873.0,63872.0,1.08239674]
[1721353988120,0.00083,63873.0,63872.0,1.07839674]
[1721353988525,0.00183,63873.0,63872.0,1.08439674]
[1721353989391,0.00183,63873.0,63872.0,1.08239674]
[1721353989589,0.00183,63873.0,63872.0,0.1452]
[1721353989790,0.00183,63873.0,63872.0,0.1482]
[1721353989992,0.00183,63873.0,63872.0,0.304763]
[1721353990404,0.00183,63873.0,63872.0,0.301763]
[1721353990817,0.00083,63873.0,63872.0,0.612889]
[1721353991019,0.00083,63873.0,63872.0,0.299763]
[1721353991378,0.00183,63873.0,63872.0,0.618889]
[1721353991578,0.00183,63873.0,63872.0,0.61803671]
[1721353993432,0.00183,63873.0,63872.0,0.30491071]
[1721353994201,0.00183,63873.0,63872.0,0.61803671]
[1721353994645,0.00183,63873.0,63872.0,0.30491071]
[1721353994852,0.00183,63873.0,63872.0,0.61803671]
[1721353995581,0.00183,63873.0,63872.0,0.93116271]
[1721353998820,0.00183,63873.0,63872.0,0.61803671]
[1721353999271,0.00183,63873.0,63872.0,0.14834771]
[1721353999272,0.314951,63873.0,63872.0,0.14834771]
[1721353999513,0.314951,63873.0,63872.0,0.01]
[1721353999514,0.8771159,63873.0,63872.0,0.01]
[1721353999702,1.20389325,63873.0,63872.0,0.01]
[1721354000127,0.15658,63865.0,63864.0,0.0656]
[1721354000331,0.46974,63865.0,63864.0,0.0656]
[1721354000558,0.313167,63864.0,63860.0,0.063]
[1721354000731,0.156584,63864.0,63860.0,0.063]
[1721354000975,0.156585,63863.0,63860.0,0.063]
[1721354001145,0.01365635,63863.0,63860.0,0.219592]
[1721354001574,0.156582,63864.0,63860.0,0.219592]
[1721354001687,0.01365635,63862.0,63860.0,0.219592]
[1721354001906,0.156582,63864.0,63860.0,0.219592]
[1721354002112,0.313151,63867.0,63861.0,0.15659]
[1721354002113,0.15658,63865.0,63861.0,0.15659]
[1721354002602,0.009,63864.0,63861.0,0.15659]
[1721354003128,0.15658,63865.0,63861.0,0.15659]
[1721354003347,0.007,63863.0,63861.0,0.15659]
[1721354003550,0.16358,63865.0,63861.0,0.15659]
[1721354004005,0.005,63864.0,63861.0,0.15659]
[1721354004691,0.003,63863.0,63861.0,0.15659]
[1721354004905,0.16358,63865.0,63861.0,0.15659]
[1721354005307,0.005,63864.0,63861.0,0.15659]
[1721354005509,0.005,63864.0,63860.0,0.063913]
[1721354005707,0.005,63863.0,63860.0,0.063913]
[1721354005912,0.15659,63861.0,63860.0,0.063913]
[1721354006319,0.156588,63862.0,63860.0,0.063913]
[1721354006702,0.15659,63861.0,63860.0,0.063913]
[1721354008809,0.001,63861.0,63860.0,0.063913]
[1721354009015,0.001,63861.0,63860.0,0.295805]
[1721354009223,0.001,63861.0,63860.0,0.60899]
[1721354009410,0.003,63861.0,63860.0,0.60899]
[1721354009605,0.01665635,63861.0,63860.0,0.60899]
[1721354009818,0.003,63861.0,63860.0,0.60899]
[1721354011303,0.003,63861.0,63860.0,0.295805]
[1721354012132,0.003,63861.0,63860.0,0.139213]
[1721354012344,0.47277,63861.0,63860.0,0.000913]
[1721354012565,0.48638535,63861.0,63860.0,0.000913]
[1721354012773,0.79956535,63861.0,63860.0,0.000913]
[1721354013368,1.22266745,63861.0,63860.0,0.000913]
[1721354013840,1.24133086,63861.0,63860.0,0.000913]
[1721354013986,1.46753086,63861.0,63860.0,0.000913]
[1721354014189,1.53083086,63861.0,63860.0,0.000913]
[1721354014786,1.6886126,63861.0,63860.0,0.000913]
[1721354014984,1.88780587,63861.0,63860.0,0.000913]
[1721354015185,1.88680587,63861.0,63860.0,0.000913]
[1721354015440,1.84462779,63861.0,63860.0,0.000913]
[1721354015611,1.85062779,63861.0,63860.0,0.000913]
[1721354016796,1.90062779,63861.0,63860.0,0.000913]
[1721354017067,1.85062779,63861.0,63860.0,0.000913]
[1721354017272,1.59463478,63861.0,63860.0,0.000913]
[1721354017421,0.85401648,63861.0,63860.0,0.000913]
[1721354018025,1.16719648,63861.0,63860.0,0.000913]
[1721354018402,0.85401648,63861.0,63860.0,0.000913]
[1721354018873,1.22040412,63861.0,63860.0,0.000913]
[1721354019079,1.2672585,63861.0,63860.0,0.000913]
[1721354020155,1.22040412,63861.0,63860.0,0.000913]
[1721354020283,1.27040412,63861.0,63860.0,0.000913]
[1721354020492,1.97164024,63861.0,63860.0,0.000913]
[1721354020842,2.19525463,63861.0,63860.0,0.000913]
[1721354021093,2.31026843,63861.0,63860.0,0.000913]
[1721354021468,2.26026843,63861.0,63860.0,0.000913]
[1721354021894,2.17894885,63861.0,63860.0,0.000913]
[1721354022331,2.20394873,63861.0,63860.0,0.000913]
[1721354022551,2.3582983,63861.0,63860.0,0.000913]
[1721354023635,2.40513628,63861.0,63860.0,0.000913]
[1721354023794,2.3582983,63861.0,63860.0,0.000913]
[1721354023996,2.10878692,63861.0,63860.0,0.000913]
[1721354024207,0.86818699,63861.0,63860.0,0.144313]
[1721354027925,0.86818699,63861.0,63860.0,0.000913]
[1721354027926,1.01428699,63861.0,63860.0,0.000913]
[1721354028373,1.01400439,63861.0,63860.0,0.000913]
[1721354028544,1.16835396,63861.0,63860.0,0.000913]
[1721354028749,1.02225396,63861.0,63860.0,0.000913]
[1721354030230,0.86790439,63861.0,63860.0,0.000913]
[1721354030635,0.86790439,63861.0,63860.0,0.062213]
[1721354030806,0.86790439,63861.0,63860.0,0.137913]
[1721354031494,0.08439651,63861.0,63860.0,0.137913]
[1721354034725,0.22299196,63861.0,63860.0,0.137913]
[1721354034924,0.2406359,63861.0,63860.0,0.137913]
[1721354035125,0.8669959,63861.0,63860.0,0.000913]
[1721354035866,0.91383466,63861.0,63860.0,0.000913]
[1721354036278,0.8669959,63861.0,63860.0,0.000913]
[1721354036516,0.91385021,63861.0,63860.0,0.000913]
[1721354036722,1.33455764,63861.0,63860.0,0.000913]
[1721354036914,1.38141182,63861.0,63860.0,0.000913]
[1721354037098,1.53576139,63861.0,63860.0,0.000913]
[1721354037241,1.48890721,63861.0,63860.0,0.000913]
[1721354037797,1.33455764,63861.0,63860.0,0.000913]
[1721354038000,1.33381608,63861.0,63860.0,0.000913]
[1721354038151,1.38067392,63861.0,63860.0,0.000913]
[1721354039774,1.3806877,63861.0,63860.0,0.000913]
[1721354040344,0.28676596,63861.0,63860.0,0.140813]
[1721354040550,0.08330434,63861.0,63860.0,0.140813]
[1721354040923,0.08330434,63861.0,63860.0,0.297405]
[1721354041126,0.06640196,63861.0,63860.0,0.140813]
[1721354041408,0.08307825,63861.0,63860.0,0.140813]
[1721354044321,0.06640196,63861.0,63860.0,0.140813]
[1721354044521,0.12911644,63861.0,63860.0,0.140813]
[1721354045183,0.08217992,63861.0,63860.0,0.140813]
[1721354045989,0.12913145,63861.0,63860.0,0.140813]
[1721354046481,0.03861535,63861.0,63860.0,0.923775]
[1721354047187,0.025,63861.0,63860.0,0.923775]
[1721354047389,0.012,63861.0,63860.0,0.923775]
[1721354047881,0.024,63861.0,63860.0,0.923775]
[1721354048099,0.012,63861.0,63860.0,0.923775]
[1721354048279,0.04695064,63866.0,63865.0,0.1437]
[1721354048480,0.09759543,63866.0,63865.0,0.1437]
[1721354049154,0.05064479,63866.0,63865.0,0.1437]
[1721354049493,0.05464479,63866.0,63865.0,0.1437]
[1721354050725,0.03870854,63866.0,63865.0,0.1437]
[1721354051000,0.06039428,63866.0,63865.0,0.1437]
[1721354051200,0.05639428,63866.0,63865.0,0.1437]
[1721354051412,0.06039428,63866.0,63865.0,0.1437]
[1721354051929,0.05039428,63866.0,63865.0,0.1437]
[1721354052097,0.05439428,63866.0,63865.0,0.1437]
[1721354052297,0.10134261,63866.0,63865.0,0.1437]
[1721354054066,0.10133069,63866.0,63865.0,0.1437]
[1721354054572,0.10633069,63866.0,63865.0,0.1437]
[1721354056161,0.26290769,63866.0,63865.0,0.1437]
[1721354056410,0.30626674,63866.0,63860.0,0.000913]
[1721354056579,0.56037,63861.0,63860.0,0.000913]
[1721354056784,0.64416686,63861.0,63860.0,0.000913]
[1721354056999,0.65772679,63861.0,63860.0,0.000913]
[1721354057462,0.97073362,63861.0,63860.0,0.000913]
[1721354057619,0.65755362,63861.0,63860.0,0.000913]
[1721354057820,0.59510659,63861.0,63860.0,0.000913]